fUST/lending_fUST_20240127
["ID","MTS","AMOUNT","RATE_DAILY","PERIOD"]
[312856175,1706367474528,636.65710717,0.00013502,2]
[312856177,1706367531655,267.16265354,0.00012152,2]
[312856178,1706367532297,938.44719213,0.00013502,2]
[312856179,1706367534972,608.13565426,0.00013502,2]
[312856180,1706367546276,49.5973929,0.00013502,2]
[312856181,1706367546304,888.84979923,0.00013502,2]
[312856182,1706367568280,937.45675821,0.00013502,2]
[312856183,1706367585354,155.01860223,0.00016859,3]
[312856184,1706367601884,155.01860223,0.00015172,2]
[312856185,1706367615849,155.01860223,0.0001517,2]
[312856186,1706367637851,155.01860223,0.00015167,2]
[312856187,1706367659985,155.01860223,0.00015165,2]
[312856188,1706367680451,155.01860223,0.00015161,2]
[312856189,1706367698370,155.01860223,0.0001516,2]
[312856190,1706367716375,155.01860223,0.00015075,2]
[312856191,1706367736886,155.01860223,0.00014238,2]
[312856192,1706367752865,155.01860223,0.00014237,2]
[312856193,1706367759054,688.5172537,0.00015,2]
[312856194,1706367763207,166.80502533,0.00014999,2]
[312856195,1706367765021,617.20703081,0.00014999,2]
[312856196,1706367770878,155.01860223,0.00014235,2]
[312856197,1706367786873,155.01860223,0.00014231,2]
[312856198,1706367807392,155.01860223,0.00014228,2]
[312856199,1706367827385,155.01860223,0.00014225,2]
[312856200,1706367849873,155.02015262,0.00014224,2]
[312856201,1706367871885,155.02015262,0.0001422,2]
[312856202,1706367889879,155.02015262,0.00014217,2]
[312856203,1706367909878,155.02015262,0.00014214,2]
[312856204,1706367924377,155.02015262,0.00014214,2]
[312856205,1706367944383,155.02015262,0.0001421,2]
[312856206,1706367962386,155.02015262,0.00014209,2]
[312856207,1706367972028,1100.78123539,0.00014788,2]
[312856208,1706367972057,6774.26505061,0.00014788,2]
[312856209,1706367976605,8225.73494939,0.00014788,2]
[312856210,1706367976634,16674.26505061,0.00014788,2]
[312856211,1706367980422,155.02015262,0.00014206,2]
[312856229,1706368000598,371.972256,0.00014783,2]
[312856230,1706368000892,155.02015262,0.00014203,2]
[312856231,1706368013667,535.1612977,0.00014781,2]
[312856232,1706368018888,155.02015262,0.000142,2]
[312856233,1706368042891,155.02015262,0.00014109,2]
[312856234,1706368059411,155.02015262,0.00014107,2]
[312856235,1706368077413,155.02015262,0.00014104,2]
[312856236,1706368099414,155.02015262,0.00014102,2]
[312856237,1706368117906,155.02015262,0.00014018,2]
[312856238,1706368137912,155.02015262,0.00014015,2]
[312856243,1706368155909,155.02015262,0.00014012,2]
[312856244,1706368170415,155.02015262,0.00014011,2]
[312856245,1706368188430,155.02015262,0.00014008,2]
[312856246,1706368207334,664.2704056,0.00014565,2]
[312856247,1706368208421,155.02015262,0.00014005,2]
[312856248,1706368226921,155.02015262,0.00014002,2]
[312856265,1706368231791,-302.17444234,0.00015556,2]
[312856267,1706368231801,-1267.85460751,0.00015556,2]
[312856269,1706368231810,-1995.07963943,0.00015556,2]
[312856271,1706368231820,-1697.2441966,0.00015556,2]
[312856273,1706368231829,-155.02015262,0.00015556,2]
[312856275,1706368231838,-20888.1177253,0.00015556,2]
[312856277,1706368231847,-4817.36489966,0.00015556,2]
[312856278,1706368231856,-588.79527568,0.00015557,2]
[312856279,1706368231865,-179.04837668,0.00015557,2]
[312856280,1706368231874,-155.02015262,0.00015557,2]
[312856281,1706368231883,-4106.34079677,0.00015557,2]
[312856282,1706368231892,-617.20703081,0.00015557,2]
[312856283,1706368231902,-1742.30413686,0.00015557,2]
[312856284,1706368231911,-167.14042975,0.00015558,2]
[312856285,1706368231920,-155.02015262,0.00015558,2]
[312856286,1706368231928,-5000.0,0.00015558,2]
[312856287,1706368231937,-243.3365684,0.00015558,2]
[312856288,1706368231946,-2817.08459116,0.00015558,2]
[312856289,1706368231955,-2040.63936826,0.00015558,2]
[312856290,1706368231965,-3921.59583547,0.00015558,2]
[312856291,1706368231974,-213.595546,0.00015559,2]
[312856292,1706368231983,-155.02015262,0.00015559,2]
[312856293,1706368231993,-199.37233951,0.00015559,2]
[312856294,1706368232002,-562.04995501,0.00015559,2]
[312856295,1706368232011,-3488.32998567,0.00015559,2]
[312856296,1706368232020,-2004.1473138,0.00015559,2]
[312856297,1706368232030,-521.0,0.0001556,2]
[312856298,1706368232039,-522.50744065,0.0001556,2]
[312856299,1706368232048,-595.56031941,0.0001556,2]
[312856300,1706368232057,-494.75816422,0.0001556,2]
[312856301,1706368232066,-155.02015262,0.0001556,2]
[312856302,1706368232075,-21701.07731623,0.0001556,2]
[312856303,1706368232084,-500.0,0.00015561,2]
[312856304,1706368232093,-1254.50882971,0.00015561,2]
[312856305,1706368232102,-166.80502533,0.00015561,2]
[312856306,1706368232111,-688.5172537,0.00015561,2]
[312856307,1706368232120,-937.92643854,0.00015561,2]
[312856308,1706368232129,-329.79784935,0.00015561,2]
[312856309,1706368232138,-155.02015262,0.00015561,2]
[312856310,1706368232147,-155.02015262,0.00015561,2]
[312856311,1706368232157,-155.02015262,0.00015561,2]
[312856312,1706368232166,-36993.50130964,0.00015561,2]
[312856313,1706368232175,-156.21203672,0.00015561,2]
[312856314,1706368232184,-155.02015262,0.00015562,2]
[312856315,1706368232193,-1294.67927842,0.00015562,2]
[312856316,1706368232202,-19881.04253243,0.00015562,2]
[312856317,1706368232211,-261.32079795,0.00015563,2]
[312856318,1706368232220,-527.10191996,0.00015563,2]
[312856319,1706368232229,-81256.3314766,0.00015563,2]
[312856320,1706368232238,-18917.23049455,0.00015563,2]
[312856321,1706368232246,-7818.02905683,0.00015563,2]
[312856322,1706368232256,-155.02015262,0.00015564,2]
[312856323,1706368232265,-155.06158408,0.00015564,2]
[312856324,1706368232274,-19715.74438324,0.00015564,2]
[312856325,1706368232283,-3748.53879648,0.00015564,2]
[312856326,1706368232292,-1998.09663254,0.00015564,2]
[312856327,1706368232308,-2706.67374614,0.00015564,2]
[312856344,1706368237847,-171.07208762,0.00015554,2]
[312856345,1706368237857,-437.80926255,0.00015555,2]
[312856347,1706368237868,-589.20407749,0.00015555,2]
[312856349,1706368237877,-1580.67204766,0.00015555,2]
[312856351,1706368237887,-16211.12749713,0.00015564,2]
[312856353,1706368237896,-155.02015262,0.00015564,2]
[312856355,1706368237905,-904.37484693,0.00015564,2]
[312856357,1706368237915,-1243.37082882,0.00015564,2]
[312856359,1706368237924,-367.33115164,0.00015582,2]
[312856361,1706368237933,-167.03300132,0.00015682,2]
[312856363,1706368237943,-335.61912509,0.00015787,2]
[312856365,1706368237953,-2105.3133158,0.00015812,2]
[312856367,1706368237963,-471.05101678,0.00015819,2]
[312856369,1706368237972,-272.79145972,0.000165,2]
[312856371,1706368237981,-279.52693458,0.00016858,2]
[312856373,1706368237990,-265.67702683,0.00016858,2]
[312856375,1706368237999,-157.33639088,0.00016858,2]
[312856377,1706368238008,-159.13769746,0.00016858,2]
[312856379,1706368238018,-309.70578029,0.00016858,2]
[312856381,1706368238027,-189.98883944,0.00016858,2]
[312856383,1706368238036,-625.17876758,0.00016858,2]
[312856385,1706368238045,-230.81497573,0.00016858,2]
[312856387,1706368238054,-155.40863944,0.00016858,2]
[312856389,1706368238063,-225.62064487,0.00016858,2]
[312856391,1706368238072,-170.05097642,0.00016858,2]
[312856393,1706368238081,-155.16232386,0.00016858,2]
[312856395,1706368238091,-227.73971285,0.00016858,2]
[312856397,1706368238099,-198.61153431,0.00016858,2]
[312856399,1706368238108,-185.53502799,0.00017714,2]
[312856401,1706368238119,-203.02463947,0.00017813,2]
[312856403,1706368238128,-263.22113503,0.00017813,2]
[312856405,1706368238138,-310.00620012,0.00017997,2]
[312856407,1706368238147,-978.2579722,0.00018113,2]
[312856409,1706368238156,-1583.7528565,0.00019,2]
[312856411,1706368238165,-367.33115162,0.00019162,2]
[312856413,1706368238174,-165.358192,0.00019178,2]
[312856415,1706368238183,-155.01860223,0.0002,2]
[312856417,1706368238192,-387.16006083,0.0002,2]
[312856419,1706368238201,-200.0,0.0002,2]
[312856421,1706368238210,-1199.09633829,0.0002,2]
[312856423,1706368238220,-679.3029243,0.0002,2]
[312856425,1706368238229,-151.53333552,0.0002,2]
[312856427,1706368238238,-294.35075022,0.00020987,2]
[312856429,1706368238247,-619.87708183,0.00020989,2]
[312856431,1706368238256,-233.19482387,0.00021,2]
[312856433,1706368238265,-30977.36086633,0.00021,2]
[312856435,1706368238274,-9869.12528061,0.00021,2]
[312856437,1706368238284,-194.51343232,0.00021,2]
[312856439,1706368238294,-1827.7377922,0.00021,2]
[312856441,1706368238303,-500.0,0.00021917,2]
[312856443,1706368238312,-500.0,0.00021917,2]
[312856445,1706368238322,-500.0,0.00021917,2]
[312856447,1706368238331,-500.0,0.00021917,2]
[312856449,1706368238340,-500.0,0.00021917,2]
[312856451,1706368238350,-500.0,0.00021917,2]
[312856453,1706368238359,-619.87643609,0.00021917,2]
[312856455,1706368238368,-166.666666,0.00021918,2]
[312856457,1706368238377,-2036.12411825,0.00022,2]
[312856459,1706368238386,-327.61566675,0.00022,2]
[312856461,1706368238396,-426.38170713,0.00022,2]
[312856463,1706368238404,-164.09330822,0.00022,2]
[312856465,1706368238414,-3971.98419525,0.00022,2]
[312856467,1706368238424,-371.972256,0.00022175,2]
[312856469,1706368238433,-166.666666,0.00022431,2]
[312856471,1706368238442,-155.01860223,0.00022706,2]
[312856473,1706368238450,-367.33115162,0.00022741,2]
[312856475,1706368238459,-166.666666,0.00022944,2]
[312856477,1706368238468,-9947.92180076,0.00023,2]
[312856479,1706368238477,-166.666666,0.00023456,2]
[312856481,1706368238486,-2009.31889645,0.00023948,2]
[312856483,1706368238495,-166.892441,0.00023961,2]
[312856485,1706368238504,-166.666666,0.00023969,2]
[312856487,1706368238513,-4017.99473219,0.00024,2]
[312856489,1706368238522,-166.666666,0.00024482,2]
[312856491,1706368238531,-851.06760342,0.00025,2]
[312856493,1706368238540,-7389.4786433,0.00025,2]
[312856495,1706368238549,-1828.18039739,0.00025,2]
[312856497,1706368238558,-4727.98807036,0.00025,2]
[312856499,1706368238567,-156.19598509,0.00025,2]
[312856501,1706368238576,-2908.5811352,0.00025297,2]
[312856503,1706368238585,-200.0,0.00025479,2]
[312856505,1706368238593,-241.485214,0.00026,2]
[312856507,1706368238602,-642.42435849,0.00026244,2]
[312856509,1706368238611,-367.33115162,0.00026321,2]
[312856511,1706368238620,-290.6944281,0.00027,2]
[312856513,1706368238630,-623.01783127,0.0002728,2]
[312856515,1706368238639,-156.37412083,0.00027389,2]
[312856517,1706368238648,-2080.40059102,0.0002739,2]
[312856519,1706368238657,-5175.97265662,0.00027391,2]
[312856521,1706368238667,-6063.0591503,0.00027391,2]
[312856523,1706368238676,-687.53833928,0.00027393,2]
[312856525,1706368238685,-267.96591154,0.00027395,2]
[312856527,1706368238694,-17728.66,0.00027397,3]
[312856529,1706368238703,-14773.88,0.00027397,3]
[312856531,1706368238712,-12311.57,0.00027397,3]
[312856533,1706368238725,-1901.44944296,0.000275,2]
[312856535,1706368238734,-556.2457431,0.00028,2]
[312856537,1706368238743,-620.15089156,0.00028644,2]
[312856539,1706368238752,-1000.0,0.00029,2]
[312856541,1706368238762,-7196.06854955,0.00029,4]
[312856543,1706368238772,-1933.42796518,0.00029,2]
[312856545,1706368238781,-153.0,0.00029315,2]
[312856547,1706368238790,-153.0,0.00029315,2]
[312856549,1706368238799,-154.5089909,0.00029315,2]
[312856551,1706368238809,-212.0814075,0.00029315,2]
[312856553,1706368238819,-159.5134984,0.00029589,2]
[312856555,1706368238829,-6531.37821171,0.00029724,2]
[312856557,1706368238838,-175.0,0.00029724,2]
[312856559,1706368238847,-5000.0,0.00029724,5]
[312856561,1706368238856,-31522.09595778,0.00029724,3]
[312856563,1706368238865,-5000.0,0.00029724,5]
[312856564,1706368238874,-22529.62449983,0.00029724,4]
[312856566,1706368238883,-5145.0610468,0.00029724,2]
[312856567,1706368238892,-367.33115162,0.000299,2]
[312856569,1706368238901,-2512.042803,0.00029998,2]
[312856570,1706368238910,-500.0,0.00029999,2]
[312856572,1706368238918,-190.40084948,0.00029999,2]
[312856573,1706368238927,-500.0,0.00029999,2]
[312856577,1706368239008,-500.0,0.00029999,2]
[312856578,1706368239018,-577.97246029,0.00029999,2]
[312856579,1706368239028,-500.0,0.00029999,2]
[312856580,1706368239037,-500.0,0.00029999,2]
[312856581,1706368239046,-500.0,0.00029999,2]
[312856582,1706368239056,-500.0,0.00029999,2]
[312856583,1706368239065,-211.38916615,0.00029999,2]
[312856584,1706368239075,-500.0,0.00029999,2]
[312856585,1706368239084,-500.0,0.00029999,2]
[312856586,1706368239094,-500.0,0.00029999,2]
[312856587,1706368239104,-500.0,0.00029999,2]
[312856588,1706368239131,-500.0,0.00029999,2]
[312856589,1706368239155,-500.0,0.00029999,2]
[312856590,1706368239164,-500.0,0.00029999,2]
[312856591,1706368239173,-500.0,0.00029999,2]
[312856592,1706368239182,-500.0,0.00029999,2]
[312856593,1706368239191,-500.0,0.00029999,2]
[312856594,1706368239201,-500.0,0.00029999,2]
[312856595,1706368239209,-500.0,0.00029999,2]
[312856596,1706368239218,-500.0,0.00029999,2]
[312856597,1706368239227,-500.0,0.00029999,2]
[312856598,1706368239236,-500.0,0.00029999,2]
[312856599,1706368239245,-500.0,0.00029999,2]
[312856600,1706368239254,-500.0,0.00029999,2]
[312856601,1706368239263,-500.0,0.00029999,2]
[312856602,1706368239272,-500.0,0.00029999,2]
[312856603,1706368239281,-500.0,0.00029999,2]
[312856604,1706368239290,-500.0,0.00029999,2]
[312856605,1706368239298,-500.0,0.00029999,2]
[312856606,1706368239307,-248.2,0.00029999,2]
[312856607,1706368239317,-500.0,0.00029999,2]
[312856608,1706368239326,-500.0,0.00029999,2]
[312856609,1706368239334,-500.0,0.00029999,2]
[312856610,1706368239343,-500.0,0.00029999,2]
[312856611,1706368239352,-500.0,0.00029999,2]
[312856612,1706368239361,-500.0,0.00029999,2]
[312856613,1706368239370,-500.0,0.00029999,2]
[312856614,1706368239379,-500.0,0.00029999,2]
[312856615,1706368239388,-500.0,0.00029999,2]
[312856616,1706368239397,-500.0,0.00029999,2]
[312856617,1706368239406,-500.0,0.00029999,2]
[312856618,1706368239415,-500.0,0.00029999,2]
[312856619,1706368239424,-500.0,0.00029999,2]
[312856620,1706368239433,-500.0,0.00029999,2]
[312856621,1706368239443,-500.0,0.00029999,2]
[312856622,1706368239452,-500.0,0.00029999,2]
[312856623,1706368239461,-500.0,0.00029999,2]
[312856624,1706368239470,-500.0,0.00029999,2]
[312856625,1706368239479,-500.0,0.00029999,2]
[312856626,1706368239487,-500.0,0.00029999,2]
[312856627,1706368239497,-500.0,0.00029999,2]
[312856628,1706368239506,-523.65030837,0.00029999,2]
[312856629,1706368239515,-500.0,0.00029999,2]
[312856630,1706368239524,-500.0,0.00029999,2]
[312856631,1706368239533,-500.0,0.00029999,2]
[312856632,1706368239543,-500.0,0.00029999,2]
[312856633,1706368239552,-500.0,0.00029999,2]
[312856634,1706368239562,-500.0,0.00029999,2]
[312856635,1706368239571,-500.0,0.00029999,2]
[312856636,1706368239580,-500.0,0.00029999,2]
[312856637,1706368239589,-500.0,0.00029999,2]
[312856638,1706368239598,-500.0,0.00029999,2]
[312856639,1706368239606,-500.0,0.00029999,2]
[312856640,1706368239615,-500.0,0.00029999,2]
[312856641,1706368239636,-500.0,0.00029999,2]
[312856642,1706368239646,-500.0,0.00029999,2]
[312856643,1706368239656,-500.0,0.00029999,2]
[312856644,1706368239666,-500.0,0.00029999,2]
[312856645,1706368239675,-500.0,0.00029999,2]
[312856646,1706368239686,-500.0,0.00029999,2]
[312856647,1706368239695,-500.0,0.00029999,2]
[312856648,1706368239705,-500.0,0.00029999,2]
[312856649,1706368239715,-500.0,0.00029999,2]
[312856650,1706368239727,-500.0,0.00029999,2]
[312856651,1706368239737,-500.0,0.00029999,2]
[312856652,1706368239746,-500.0,0.00029999,2]
[312856653,1706368239756,-500.0,0.00029999,2]
[312856654,1706368239766,-500.0,0.00029999,2]
[312856655,1706368239776,-500.0,0.00029999,2]
[312856656,1706368239786,-500.0,0.00029999,2]
[312856657,1706368239798,-500.0,0.00029999,2]
[312856658,1706368239808,-500.0,0.00029999,2]
[312856659,1706368239818,-500.0,0.00029999,2]
[312856660,1706368239827,-581.25180907,0.00029999,2]
[312856661,1706368239837,-500.0,0.00029999,2]
[312856662,1706368239846,-500.0,0.00029999,2]
[312856663,1706368239856,-500.0,0.00029999,2]
[312856664,1706368239866,-500.0,0.00029999,2]
[312856665,1706368239876,-485.83716126,0.00029999,2]
[312856666,1706368239886,-500.0,0.00029999,2]
[312856667,1706368239896,-500.0,0.00029999,2]
[312856668,1706368239905,-500.0,0.00029999,2]
[312856669,1706368239915,-500.0,0.00029999,2]
[312856670,1706368239924,-500.0,0.00029999,2]
[312856671,1706368239934,-500.0,0.00029999,2]
[312856672,1706368239944,-500.0,0.00029999,2]
[312856673,1706368239954,-500.0,0.00029999,2]
[312856676,1706368239963,-500.0,0.00029999,2]
[312856678,1706368239972,-500.0,0.00029999,2]
[312856680,1706368239981,-500.0,0.00029999,2]
[312856682,1706368239991,-500.0,0.00029999,2]
[312856683,1706368240000,-500.0,0.00029999,2]
[312856684,1706368240009,-500.0,0.00029999,2]
[312856686,1706368240019,-500.0,0.00029999,2]
[312856687,1706368240028,-500.0,0.00029999,2]
[312856689,1706368240037,-500.0,0.00029999,2]
[312856691,1706368240047,-500.0,0.00029999,2]
[312856693,1706368240057,-500.0,0.00029999,2]
[312856695,1706368240066,-500.0,0.00029999,2]
[312856696,1706368240076,-500.0,0.00029999,2]
[312856698,1706368240085,-500.0,0.00029999,2]
[312856700,1706368240094,-500.0,0.00029999,2]
[312856701,1706368240103,-500.0,0.00029999,2]
[312856702,1706368240112,-500.0,0.00029999,2]
[312856703,1706368240122,-500.0,0.00029999,2]
[312856704,1706368240131,-500.0,0.00029999,2]
[312856705,1706368240141,-500.0,0.00029999,2]
[312856706,1706368240151,-521.57676531,0.00029999,2]
[312856707,1706368240160,-500.0,0.00029999,2]
[312856708,1706368240169,-500.0,0.00029999,2]
[312856709,1706368240179,-500.0,0.00029999,2]
[312856710,1706368240188,-500.0,0.00029999,2]
[312856711,1706368240197,-500.0,0.00029999,2]
[312856712,1706368240206,-500.0,0.00029999,2]
[312856713,1706368240215,-500.0,0.00029999,2]
[312856714,1706368240224,-500.0,0.00029999,2]
[312856715,1706368240234,-500.0,0.00029999,2]
[312856716,1706368240243,-500.0,0.00029999,2]
[312856717,1706368240253,-500.0,0.00029999,2]
[312856718,1706368240263,-250.0,0.00029999,2]
[312856719,1706368240272,-500.0,0.00029999,2]
[312856720,1706368240281,-164.38087491,0.00029999,2]
[312856721,1706368240290,-170.56154962,0.00029999,2]
[312856722,1706368240300,-5726.50858255,0.0003,2]
[312856723,1706368240309,-244.44828906,0.0003,4]
[312856724,1706368240318,-195.76432188,0.0003,2]
[312856725,1706368240328,-146331.23431988,0.0003,4]
[312856727,1706368240338,-155.01860223,0.0003,4]
[312856729,1706368240347,-155.01860223,0.0003,4]
[312856730,1706368240356,-141183.1533276,0.0003,14]
[312856732,1706368240365,-4577.70352548,0.0003,3]
[312856734,1706368240374,-2322.63899866,0.0003,4]
[312856735,1706368240383,-155.01860223,0.0003,4]
[312856736,1706368240392,-200.82122795,0.0003,4]
[312856737,1706368240402,-157.99274934,0.0003,4]
[312856739,1706368240411,-689.09430435,0.0003,4]
[312856741,1706368240420,-254.87264804,0.0003,2]
[312856742,1706368240516,-346.0,0.0003,2]
[312856743,1706368240525,-620.00754458,0.00030076,2]
[312856744,1706368240534,-153.0,0.00030137,2]
[312856745,1706368240544,-153.0,0.00030137,2]
[312856746,1706368240553,-153.0,0.00030137,2]
[312856747,1706368240562,-153.0,0.00030137,2]
[312856748,1706368240570,-153.0,0.00030137,2]
[312856749,1706368240579,-153.0,0.00030137,2]
[312856750,1706368240588,-153.0,0.00030137,2]
[312856751,1706368240597,-199.4415769,0.00030137,2]
[312856752,1706368240606,-153.0,0.00030137,2]
[312856753,1706368240615,-153.0,0.00030137,2]
[312856754,1706368240624,-153.0,0.00030137,2]
[312856755,1706368240633,-153.0,0.00030137,2]
[312856756,1706368240642,-199.4415769,0.00030137,2]
[312856757,1706368240651,-317.486678,0.00030137,2]
[312856758,1706368240660,-254.41303,0.00030137,2]
[312856759,1706368240670,-158.81503,0.00030137,2]
[312856760,1706368240679,-151.0,0.00030597,2]
[312856761,1706368240688,-161.78857432,0.00031,4]
[312856762,1706368240696,-69343.91243545,0.00031,2]
[312856763,1706368240706,-2084.071023,0.00031,4]
[312856764,1706368240716,-855.54620307,0.00031,4]
[312856765,1706368240727,-539.43686012,0.00031,4]
[312856766,1706368240736,-759.80109962,0.00031,4]
[312856767,1706368240746,-300.0,0.00031,4]
[312856768,1706368240755,-649.86107879,0.00031,4]
[312856769,1706368240764,-155.18038222,0.00031,4]
[312856770,1706368240773,-1027.50463707,0.00031,2]
[312856771,1706368240782,-4292.55674097,0.00031,4]
[312856772,1706368240791,-254.41303,0.00031115,2]
[312856773,1706368240802,-151.0,0.00031195,2]
[312856774,1706368240811,-620.00037723,0.0003158,2]
[312856775,1706368240820,-158.81503,0.00031703,2]
[312856776,1706368240829,-151.0,0.00031793,2]
[312856777,1706368240838,-155.58848212,0.00032,4]
[312856778,1706368240847,-39131.00414303,0.00032,15]
[312856779,1706368240856,-3138.37234854,0.00032,2]
[312856780,1706368240865,-897.97777174,0.00032,7]
[312856781,1706368240875,-300.0,0.00032,16]
[312856782,1706368240884,-254.41303,0.00032094,2]
[312856783,1706368240893,-151.0,0.00032392,2]
[312856784,1706368240902,-82714.7913079,0.00032557,2]
[312856785,1706368240911,-151.0,0.0003299,2]
[312856786,1706368240921,-347.61,0.00032999,2]
[312856787,1706368240929,-347.61,0.00032999,2]
[312856788,1706368240938,-347.61,0.00032999,2]
[312856789,1706368240948,-347.61,0.00032999,2]
[312856790,1706368240957,-347.61,0.00032999,2]
[312856791,1706368240966,-347.61,0.00032999,2]
[312856792,1706368240974,-500.0,0.00032999,7]
[312856793,1706368240983,-176.60188357,0.00032999,7]
[312856794,1706368240993,-500.0,0.00032999,7]
[312856795,1706368241002,-500.0,0.00032999,7]
[312856796,1706368241010,-311.78878247,0.00032999,7]
[312856797,1706368241019,-500.0,0.00032999,7]
[312856798,1706368241028,-500.0,0.00032999,7]
[312856799,1706368241037,-500.0,0.00032999,7]
[312856800,1706368241046,-500.0,0.00032999,7]
[312856801,1706368241055,-500.0,0.00032999,7]
[312856802,1706368241064,-500.0,0.00032999,7]
[312856803,1706368241073,-373.73938568,0.00032999,7]
[312856804,1706368241081,-500.0,0.00032999,7]
[312856805,1706368241090,-500.0,0.00032999,7]
[312856806,1706368241099,-500.0,0.00032999,7]
[312856807,1706368241108,-500.0,0.00032999,7]
[312856808,1706368241117,-500.0,0.00032999,7]
[312856809,1706368241126,-500.0,0.00032999,7]
[312856810,1706368241134,-500.0,0.00032999,7]
[312856811,1706368241143,-500.0,0.00032999,7]
[312856812,1706368241152,-321.69028241,0.00032999,7]
[312856813,1706368241161,-500.0,0.00032999,7]
[312856814,1706368241170,-500.0,0.00032999,7]
[312856815,1706368241178,-297.72143804,0.00032999,7]
[312856816,1706368241187,-500.0,0.00032999,7]
[312856817,1706368241196,-500.0,0.00032999,7]
[312856818,1706368241205,-500.0,0.00032999,7]
[312856819,1706368241215,-500.0,0.00032999,7]
[312856820,1706368241225,-500.0,0.00032999,7]
[312856821,1706368241234,-500.0,0.00032999,7]
[312856822,1706368241242,-500.0,0.00032999,7]
[312856823,1706368241251,-500.0,0.00032999,7]
[312856824,1706368241261,-500.0,0.00032999,7]
[312856825,1706368241271,-532.71939461,0.00032999,7]
[312856826,1706368241280,-500.0,0.00032999,7]
[312856827,1706368241289,-500.0,0.00032999,7]
[312856828,1706368241299,-500.0,0.00032999,7]
[312856829,1706368241308,-500.0,0.00032999,7]
[312856830,1706368241317,-228.50754628,0.00033,2]
[312856831,1706368241326,-22355.32655684,0.00033,5]
[312856832,1706368241336,-2381.55591671,0.00033,2]
[312856833,1706368241345,-304.86419737,0.00033,3]
[312856834,1706368241354,-36000.0,0.00033,7]
[312856835,1706368241362,-151.0,0.00033,2]
[312856836,1706368241372,-545.413487,0.00033,2]
[312856837,1706368241381,-545.413487,0.00033,2]
[312856838,1706368241391,-2723.946683,0.00033,2]
[312856839,1706368241400,-2723.946683,0.00033,2]
[312856840,1706368241409,-154.0,0.00033,2]
[312856841,1706368241418,-151.0,0.00033,2]
[312856842,1706368241426,-151.0,0.00033,2]
[312856843,1706368241436,-151.0,0.00033,2]
[312856844,1706368241445,-8761.734273,0.00033,2]
[312856845,1706368241454,-8761.734273,0.00033,2]
[312856846,1706368241462,-254.41303,0.00033072,2]
[312856847,1706368241472,-620.00001886,0.00033159,2]
[312856848,1706368241480,-158.81503,0.00033268,2]
[312856849,1706368241489,-300.0,0.000335,17]
[312856850,1706368241499,-151.0,0.00033588,2]
[312856851,1706368241508,-50000.0,0.00033723,7]
[312856852,1706368241517,-1000.0,0.00034,2]
[312856853,1706368241526,-254.41303,0.00034051,2]
[312856854,1706368241534,-151.0,0.00034186,2]
[312856855,1706368241545,-154.0,0.00034521,2]
[312856856,1706368241554,-151.754742,0.00034589,2]
[312856857,1706368241563,-151.0,0.00034589,2]
[312856858,1706368241571,-179.978939,0.00034589,2]
[312856859,1706368241580,-179.978939,0.00034589,2]
[312856860,1706368241590,-3839.293578,0.0003459,2]
[312856861,1706368241599,-151.0,0.0003459,2]
[312856862,1706368241609,-151.0,0.0003459,2]
[312856863,1706368241618,-2006.52550416,0.000347,14]
[312856864,1706368241628,-151.0,0.00034784,2]
[312856865,1706368241637,-620.00000094,0.00034817,2]
[312856866,1706368241646,-158.81503,0.00034834,2]
[312856867,1706368241655,-200.0,0.000349,4]